bitfinex-derivatives/quotes_BTCF0:USTF0_20251210
["timestamp","ask_amount","ask_price","bid_price","bid_amount"]
[1765365914621,0.05487,92371.0,92370.0,0.03893916]
[1765365914822,0.55735,92371.0,92370.0,0.03893916]
[1765365915213,0.05487,92370.0,92369.0,0.03893916]
[1765365916224,0.05487,92370.0,92368.0,0.03893916]
[1765365916417,0.05487,92369.0,92368.0,0.03893916]
[1765365917019,0.05487,92367.0,92366.0,0.03893916]
[1765365917215,0.05487,92367.0,92365.0,0.03893916]
[1765365917427,0.05487,92366.0,92365.0,0.06707916]
[1765365918221,0.05487,92366.0,92365.0,0.02814]
[1765365918828,0.05687,92366.0,92365.0,0.02914]
[1765365919126,0.05687,92366.0,92365.0,0.03014]
[1765365919526,0.05687,92366.0,92365.0,0.05811]
[1765365933330,0.05687,92366.0,92365.0,0.09704916]
[1765365933727,0.002,92366.0,92365.0,0.09704916]
[1765365933932,0.03138,92366.0,92365.0,0.09704916]
[1765365934132,0.06028,92366.0,92365.0,0.09704916]
[1765365934438,0.06028,92366.0,92365.0,0.05811]
[1765365935647,0.002,92366.0,92365.0,0.05811]
[1765365935846,0.002,92366.0,92365.0,0.14811]
[1765365936032,0.14080002,92380.0,92379.0,0.05653]
[1765365936232,0.39544,92380.0,92379.0,0.05653]
[1765365936435,0.33716,92380.0,92379.0,0.05653]
[1765365937142,0.33916,92380.0,92379.0,0.05753]
[1765365937446,0.34416,92380.0,92379.0,0.05853]
[1765365938048,0.37354,92380.0,92379.0,0.05853]
[1765365938249,0.34416,92380.0,92379.0,0.05853]
[1765365939345,0.007,92380.0,92379.0,0.05853]
[1765365939540,0.007,92380.0,92379.0,0.11689847]
[1765365941338,0.007,92380.0,92379.0,0.05853]
[1765365945348,0.007,92380.0,92379.0,0.50933]
[1765365945760,0.00016232,92384.0,92383.0,0.05653]
[1765365945944,0.41896,92397.0,92389.0,0.05653]
[1765365946144,0.41896,92397.0,92389.0,0.41733]
[1765365946347,0.41896,92397.0,92389.0,0.45617762]
[1765365946945,0.00508237,92390.0,92389.0,0.45717762]
[1765365947146,0.01208237,92390.0,92389.0,0.41933]
[1765365947347,0.01208237,92390.0,92389.0,0.45816878]
[1765365947858,0.01208237,92390.0,92389.0,0.41933]
[1765365948452,0.00908237,92390.0,92389.0,0.42033]
[1765365949154,0.00308237,92390.0,92389.0,0.42333]
[1765365950957,0.00308237,92390.0,92389.0,0.42433]
[1765365951654,0.00308237,92390.0,92389.0,0.42533]
[1765365952460,0.00108237,92390.0,92389.0,0.41733]
[1765365952756,0.00308237,92390.0,92389.0,0.42333]
[1765365953148,0.00308237,92390.0,92389.0,0.51333]
[1765365953347,0.50244,92398.0,92397.0,0.05529]
[1765365953647,0.50244,92398.0,92397.0,0.41609]
[1765365953841,0.53051,92398.0,92397.0,0.41609]
[1765365954054,0.55812,92398.0,92397.0,0.41609]
[1765365954259,0.55812,92398.0,92397.0,0.45486576]
[1765365954642,0.05568,92398.0,92397.0,0.45486576]
[1765365955156,0.05568,92398.0,92397.0,0.45586576]
[1765365955865,0.05668,92398.0,92397.0,0.45786576]
[1765365956054,0.05668,92398.0,92397.0,0.45886576]
[1765365956457,0.001,92398.0,92397.0,0.42009]
[1765365956959,0.001,92398.0,92397.0,0.42109]
[1765365957348,0.00016241,92399.0,92398.0,0.05529]
[1765365957544,0.00016241,92399.0,92398.0,0.09406669]
[1765365957749,0.02823241,92399.0,92398.0,0.05529]
[1765365958050,0.05584241,92399.0,92398.0,0.05529]
[1765365958251,0.02823241,92399.0,92398.0,0.05529]
[1765365958452,0.02823241,92399.0,92398.0,0.05729]
[1765365958854,0.02823241,92399.0,92398.0,0.07119508]
[1765365959060,0.02923241,92399.0,92398.0,0.07119508]
[1765365959260,0.05684241,92399.0,92398.0,0.07119508]
[1765365959461,0.05684241,92399.0,92398.0,0.43199508]
[1765365960554,0.00116241,92399.0,92398.0,0.43199508]
[1765365960754,0.02923241,92399.0,92398.0,0.43199508]
[1765365961563,0.05684241,92399.0,92398.0,0.47077177]
[1765365962475,0.02923241,92399.0,92398.0,0.47077177]
[1765365963064,0.00116241,92399.0,92398.0,0.47077177]
[1765365963263,0.00116241,92399.0,92398.0,0.43199508]
[1765365963653,0.02923241,92399.0,92398.0,0.43199508]
[1765365964358,0.05684241,92399.0,92398.0,0.43199508]
[1765365965252,0.05684241,92399.0,92398.0,0.49016261]
[1765365965869,0.02923241,92399.0,92398.0,0.49016261]
[1765365966261,0.00116241,92399.0,92398.0,0.43199508]
[1765365983677,0.00116241,92399.0,92398.0,0.51199508]
[1765365987281,0.00116241,92399.0,92398.0,0.43199508]
[1765365987585,0.03062241,92399.0,92398.0,0.43199508]
[1765365990687,0.05909241,92399.0,92398.0,0.43199508]
[1765365991186,0.03062241,92399.0,92398.0,0.43199508]
[1765365991685,0.00116241,92399.0,92398.0,0.43199508]
[1765365993085,0.03062241,92399.0,92398.0,0.43199508]
[1765365993889,0.00116241,92399.0,92398.0,0.43199508]
[1765365994389,0.03062241,92399.0,92398.0,0.43199508]
[1765365994580,0.05909241,92399.0,92398.0,0.43199508]
[1765365995883,0.05909241,92399.0,92398.0,0.42109]
[1765365997090,0.05909241,92399.0,92398.0,0.47929349]
[1765365997486,0.05909241,92399.0,92398.0,0.42109]
[1765366010601,0.05793,92398.0,92390.0,0.3608]
[1765366010801,0.05793,92382.0,92381.0,0.415]
[1765366013298,0.05993,92382.0,92381.0,0.433]
[1765366013504,0.06193,92382.0,92381.0,0.447]
[1765366014211,0.05793,92382.0,92381.0,0.416]
[1765366014403,0.06193,92382.0,92381.0,0.417]
[1765366016408,0.05993,92382.0,92381.0,0.416]
[1765366016611,0.06193,92382.0,92381.0,0.417]
[1765366017613,0.004,92382.0,92381.0,0.417]
[1765366017803,0.40784,92382.0,92381.0,0.417]
[1765366018002,0.004,92382.0,92381.0,0.417]
[1765366018708,0.002,92382.0,92381.0,0.417]
[1765366019104,0.50228,92383.0,92382.0,0.05929]
[1765366020613,0.50328,92383.0,92382.0,0.06129]
[1765366021114,0.001,92383.0,92382.0,0.06129]
[1765366021912,0.02893,92383.0,92382.0,0.06129]
[1765366022107,0.02793,92383.0,92382.0,0.06029]
[1765366022308,0.02893,92383.0,92382.0,0.06129]
[1765366022726,0.02793,92383.0,92382.0,0.06129]
[1765366022933,0.02893,92383.0,92382.0,0.06129]
[1765366023429,0.001,92383.0,92382.0,0.06129]
[1765366024127,0.001,92383.0,92382.0,0.14129]
[1765366024631,0.50232,92386.0,92385.0,0.05929]
[1765366025826,0.001,92386.0,92385.0,0.13929]
[1765366026032,0.002,92386.0,92385.0,0.14029]
[1765366026934,0.001,92386.0,92385.0,0.13929]
[1765366027132,0.002,92386.0,92385.0,0.14329]
[1765366027629,0.001,92386.0,92385.0,0.14329]
[1765366027834,0.002,92386.0,92385.0,0.14329]
[1765366028531,0.41692241,92399.0,92398.0,0.05929]
[1765366029435,0.36096241,92399.0,92398.0,0.05929]
[1765366029625,0.36096241,92399.0,92398.0,0.09910476]
[1765366029826,0.38989241,92399.0,92398.0,0.10110476]
[1765366030026,0.41792241,92399.0,92398.0,0.06229]
[1765366030229,0.41792241,92399.0,92398.0,0.10110476]
[1765366030426,0.05712241,92399.0,92398.0,0.06229]
[1765366030835,0.02909241,92399.0,92398.0,0.06229]
[1765366031035,0.02909241,92399.0,92398.0,0.06129]
[1765366031337,0.02909241,92399.0,92398.0,0.06229]
[1765366031338,0.05712241,92399.0,92398.0,0.06229]
[1765366032129,0.05612241,92399.0,92398.0,0.06029]
[1765366032439,0.05712241,92399.0,92398.0,0.06229]
[1765366032643,0.05712241,92399.0,92398.0,0.06129]
[1765366032834,0.05712241,92399.0,92398.0,0.06229]
[1765366034141,0.05712241,92399.0,92398.0,0.06129]
[1765366034336,0.05712241,92399.0,92398.0,0.06229]
[1765366034937,0.05712241,92399.0,92398.0,0.06129]
[1765366035142,0.05712241,92399.0,92398.0,0.06229]
[1765366035730,0.05712241,92399.0,92398.0,0.06129]
[1765366035942,0.05712241,92399.0,92398.0,0.06229]
[1765366037145,0.05712241,92399.0,92398.0,0.06129]
[1765366037338,0.05712241,92399.0,92398.0,0.06229]
[1765366037645,0.05612241,92399.0,92398.0,0.06029]
[1765366037846,0.05712241,92399.0,92398.0,0.06229]
[1765366038237,0.05612241,92399.0,92398.0,0.06029]
[1765366038440,0.05712241,92399.0,92398.0,0.06229]
[1765366038839,0.05612241,92399.0,92398.0,0.06029]
[1765366039038,0.05712241,92399.0,92398.0,0.06229]
[1765366040752,0.05712241,92399.0,92398.0,0.06129]
[1765366040948,0.05612241,92399.0,92398.0,0.06029]
[1765366041248,0.05712241,92399.0,92398.0,0.06229]
[1765366041844,0.05712241,92399.0,92398.0,0.06129]
[1765366042046,0.05712241,92399.0,92398.0,0.06229]
[1765366042246,0.05712241,92399.0,92398.0,0.12048919]
[1765366042447,0.05712241,92399.0,92398.0,0.06229]
[1765366043340,0.05712241,92399.0,92398.0,0.06129]
[1765366043547,0.05712241,92399.0,92398.0,0.06229]
[1765366044241,0.05712241,92399.0,92398.0,0.06129]
[1765366044447,0.05712241,92399.0,92398.0,0.06229]
[1765366045559,0.02909241,92399.0,92398.0,0.06229]
[1765366046060,0.05759241,92399.0,92398.0,0.06229]
[1765366047159,0.05659241,92399.0,92398.0,0.06029]
[1765366047351,0.05759241,92399.0,92398.0,0.06229]
[1765366051366,0.02909241,92399.0,92398.0,0.06229]
[1765366051950,0.05759241,92399.0,92398.0,0.06229]
[1765366053056,0.00116241,92399.0,92398.0,0.06229]
[1765366053266,0.02848241,92399.0,92398.0,0.06229]
[1765366053456,0.00116241,92399.0,92398.0,0.06229]
[1765366055063,0.02848241,92399.0,92398.0,0.06229]
[1765366055260,0.00116241,92399.0,92398.0,0.06229]
[1765366055968,0.00116241,92399.0,92398.0,0.14229]
[1765366056962,0.00116241,92399.0,92398.0,0.21978063]
[1765366059367,0.00116241,92399.0,92398.0,0.14229]
[1765366059662,0.00116241,92399.0,92398.0,0.21978063]
[1765366060266,0.00116241,92399.0,92398.0,0.14229]
[1765366061168,0.02848241,92399.0,92398.0,0.14229]
[1765366061470,0.05698241,92399.0,92398.0,0.06229]
[1765366065379,0.00116241,92399.0,92398.0,0.06229]
[1765366066582,0.00116241,92399.0,92398.0,0.14229]
[1765366066786,0.02840208,92415.0,92414.0,0.05691]
[1765366067085,0.02840208,92415.0,92414.0,0.11521205]
[1765366067489,0.05690208,92415.0,92414.0,0.11521205]
[1765366067880,0.05890208,92415.0,92414.0,0.11621205]
[1765366068479,0.00308208,92415.0,92414.0,0.11621205]
[1765366068683,0.03040208,92415.0,92414.0,0.11621205]
[1765366068890,0.03040208,92415.0,92414.0,0.06867447]
[1765366069281,0.02840208,92415.0,92414.0,0.06767447]
[1765366069480,0.05890208,92415.0,92414.0,0.06867447]
[1765366069785,0.06090208,92415.0,92414.0,0.06967447]
[1765366070085,0.06090208,92415.0,92414.0,0.06867447]
[1765366070282,0.06090208,92415.0,92414.0,0.06967447]
[1765366070479,0.03240208,92415.0,92414.0,0.06967447]
[1765366070684,0.00508208,92415.0,92414.0,0.06967447]
[1765366070988,0.03240208,92415.0,92414.0,0.06967447]
[1765366071185,0.00016231,92424.0,92423.0,0.05691]
[1765366071399,0.00016231,92424.0,92423.0,0.49771]
[1765366071595,0.02748231,92424.0,92423.0,0.49771]
[1765366071803,0.05598231,92424.0,92423.0,0.43771]
[1765366071990,0.05598231,92424.0,92423.0,0.50771]
[1765366072386,0.02748231,92424.0,92423.0,0.50771]
[1765366072589,0.05598231,92424.0,92423.0,0.43771]
[1765366073201,0.06198231,92424.0,92423.0,0.41971]
[1765366073598,0.06098231,92424.0,92423.0,0.41971]
[1765366073793,0.05998231,92424.0,92423.0,0.41971]
[1765366077402,0.05998231,92424.0,92423.0,0.47783328]
[1765366077705,0.05998231,92424.0,92423.0,0.41971]
[1765366081494,0.06959231,92424.0,92423.0,0.3628]
[1765366081699,0.06959231,92424.0,92423.0,0.002]
[1765366082300,0.43039231,92424.0,92423.0,0.002]
[1765366089703,0.93247231,92424.0,92423.0,0.002]
[1765366094312,0.93247231,92424.0,92423.0,0.0011681]
[1765366095413,0.42078231,92424.0,92423.0,0.0562781]
[1765366095609,0.92286231,92424.0,92423.0,0.0562781]
[1765366096810,0.92286231,92424.0,92423.0,0.0011681]
[1765366102519,0.42078231,92424.0,92423.0,0.0562781]
[1765366102722,0.92290231,92424.0,92423.0,0.0562781]
[1765366102915,0.92290231,92424.0,92423.0,0.0292081]
[1765366103915,0.93911231,92424.0,92423.0,0.0011681]
[1765366104423,0.93911231,92424.0,92423.0,0.0289081]
[1765366105116,0.93911231,92424.0,92423.0,0.0011681]
[1765366105823,0.93911231,92424.0,92423.0,0.0289081]
[1765366106420,0.93911231,92424.0,92423.0,0.0011681]
[1765366107826,0.93911231,92424.0,92423.0,0.0289081]
[1765366108023,0.42078231,92424.0,92423.0,0.0564781]
[1765366108326,0.92290231,92424.0,92423.0,0.0564781]
[1765366110124,0.93877231,92424.0,92423.0,0.0289081]
[1765366110320,0.93877231,92424.0,92423.0,0.0011681]
[1765366119926,0.93877231,92424.0,92423.0,0.0564781]
[1765366121139,0.93877231,92424.0,92423.0,0.0289081]
[1765366121635,0.93877231,92424.0,92423.0,0.0011681]
[1765366122029,0.93877231,92424.0,92423.0,0.0289081]
[1765366124133,0.93877231,92424.0,92423.0,0.0011681]
[1765366124329,0.93877231,92424.0,92423.0,0.0289081]
[1765366126039,0.93877231,92424.0,92423.0,0.0564781]
[1765366126238,0.42078231,92424.0,92423.0,0.0564781]
[1765366126440,0.92286231,92424.0,92423.0,0.0564781]
[1765366128244,0.92286231,92424.0,92423.0,0.0289081]
[1765366128440,0.93940231,92424.0,92423.0,0.0011681]
[1765366134447,0.92286231,92424.0,92423.0,0.0582181]
[1765366134847,0.92286231,92424.0,92423.0,0.0301781]
[1765366135053,0.94034231,92424.0,92423.0,0.0011681]
[1765366137750,0.94034231,92424.0,92423.0,0.03991695]
[1765366147971,0.94034231,92424.0,92423.0,0.06892695]
[1765366148364,0.94034231,92424.0,92423.0,0.03991695]
[1765366148761,0.92286231,92424.0,92423.0,0.09636695]
[1765366152377,0.93935231,92424.0,92423.0,0.09636695]
[1765366153378,0.92286231,92424.0,92423.0,0.09636695]
[1765366153777,0.92286231,92424.0,92423.0,0.0576181]
[1765366154880,0.56206231,92424.0,92423.0,0.0576181]
[1765366155070,0.92286231,92424.0,92423.0,0.0576181]
[1765366158680,0.93292231,92424.0,92423.0,0.0302381]
[1765366158882,0.93292231,92424.0,92423.0,0.0011681]
[1765366166291,0.93292231,92424.0,92423.0,0.0290781]
[1765366166584,0.93292231,92424.0,92423.0,0.0011681]
[1765366167289,0.57212231,92424.0,92423.0,0.0011681]
[1765366167474,0.93292231,92424.0,92423.0,0.0011681]
[1765366173093,0.93292231,92424.0,92423.0,0.0290781]
[1765366173292,0.93292231,92424.0,92423.0,0.0563281]
[1765366175593,0.93292231,92424.0,92423.0,0.0290781]
[1765366178088,0.92286231,92424.0,92423.0,0.0563281]
[1765366182594,0.92286231,92424.0,92423.0,0.0290781]
[1765366182785,0.93960231,92424.0,92423.0,0.0011681]
[1765366183891,0.93960231,92424.0,92423.0,0.0290781]
[1765366184190,0.92286231,92424.0,92423.0,0.0563281]
[1765366184495,0.93960231,92424.0,92423.0,0.0290781]
[1765366184997,0.93960231,92424.0,92423.0,0.0563281]
[1765366185291,0.93960231,92424.0,92423.0,0.0290781]
[1765366185483,0.93960231,92424.0,92423.0,0.0011681]
[1765366186400,0.05683,92420.0,92418.0,0.05812328]
[1765366186600,0.05683,92419.0,92418.0,0.05812328]
[1765366187298,0.05683,92419.0,92417.0,0.05812328]
[1765366187499,0.06535,92418.0,92417.0,0.05812328]
[1765366187692,0.05683,92416.0,92415.0,0.05812328]
[1765366187891,0.91963,92416.0,92415.0,0.05812328]
[1765366189101,0.92063,92416.0,92415.0,0.05812328]
[1765366190192,0.92163,92416.0,92415.0,0.05812328]
[1765366190390,0.07357,92415.0,92414.0,0.05812328]
[1765366191699,0.07457,92415.0,92414.0,0.05812328]
[1765366192402,0.07557,92415.0,92414.0,0.05912328]
[1765366194592,0.07557,92415.0,92405.0,0.07789838]
[1765366194593,0.02706,92410.0,92406.0,0.05812328]
[1765366194904,0.05434,92406.0,92405.0,0.00016231]
[1765366196204,0.05534,92406.0,92405.0,0.00316231]
[1765366196407,0.41614,92406.0,92405.0,0.00316231]
[1765366197189,0.41614,92406.0,92405.0,0.03105231]
[1765366197190,0.41914,92406.0,92405.0,0.03105231]
[1765366197403,0.41914,92406.0,92405.0,0.06198231]
[1765366197806,0.92114,92406.0,92405.0,0.06198231]
[1765366198099,0.92114,92406.0,92405.0,0.06098231]
[1765366198304,0.92514,92406.0,92405.0,0.06198231]
[1765366199995,0.42314,92406.0,92405.0,0.06198231]
[1765366200194,0.92518,92406.0,92405.0,0.06198231]
[1765366201503,0.92518,92406.0,92405.0,0.00216231]
[1765366202790,0.05434,92392.0,92390.0,0.05920565]
[1765366202997,0.91718,92391.0,92390.0,0.00108237]
[1765366204097,0.91918,92391.0,92390.0,0.00108237]
[1765366204798,0.92118,92391.0,92390.0,0.00208237]
[1765366207609,0.92118,92391.0,92390.0,0.06190237]
[1765366208306,0.41914,92391.0,92390.0,0.06190237]
[1765366208494,0.9025,92391.0,92390.0,0.06190237]
[1765366210604,0.9025,92391.0,92390.0,0.00208237]
[1765366212302,0.92126,92391.0,92390.0,0.00208237]
[1765366218410,0.05564,92382.0,92381.0,0.00016231]
[1765366218612,0.91856,92382.0,92381.0,0.00016231]
[1765366219612,0.55776,92382.0,92381.0,0.05692231]
[1765366220503,0.55876,92382.0,92381.0,0.05792231]
[1765366221105,0.55876,92382.0,92381.0,0.00116231]
[1765366221323,0.91956,92382.0,92381.0,0.00116231]
[1765366235731,0.06475,92380.0,92372.0,0.03884992]
[1765366235918,0.06475,92380.0,92371.0,0.03884992]
[1765366236336,0.05638,92372.0,92371.0,0.03884992]
[1765366236537,0.05638,92368.0,92367.0,0.09576992]
[1765366237440,0.05648244,92368.0,92367.0,0.09576992]
[1765366237645,0.05848244,92368.0,92367.0,0.10276992]
[1765366238247,0.05848244,92368.0,92367.0,0.06392]
[1765366238444,0.05848244,92368.0,92367.0,0.007]
[1765366240350,0.05848244,92368.0,92367.0,0.06392]
[1765366240549,0.05848244,92368.0,92367.0,0.007]
[1765366241650,0.05848244,92368.0,92367.0,0.06392]
[1765366241851,0.05848244,92368.0,92367.0,0.007]
[1765366244359,0.05848244,92368.0,92367.0,0.07346992]
[1765366244556,0.05848244,92368.0,92367.0,0.10276992]
[1765366246358,0.56072244,92368.0,92367.0,0.10276992]
[1765366247360,0.56072244,92368.0,92367.0,0.06392]
[1765366250557,0.00210244,92368.0,92367.0,0.06392]
[1765366250950,0.49422244,92368.0,92367.0,0.06392]
[1765366251158,0.50438244,92368.0,92367.0,0.06392]
[1765366252261,0.56076244,92368.0,92367.0,0.06392]
[1765366253165,0.05848244,92368.0,92367.0,0.06392]
[1765366253364,0.56076244,92368.0,92367.0,0.06392]
[1765366258467,0.50438244,92368.0,92367.0,0.06392]
[1765366259057,0.53257244,92368.0,92367.0,0.06392]
[1765366261072,0.56076244,92368.0,92367.0,0.06392]
[1765366263174,0.50438244,92368.0,92367.0,0.06392]
[1765366263378,0.00210244,92368.0,92367.0,0.06392]
[1765366263774,0.00016231,92377.0,92367.0,0.06392]
[1765366263775,0.00016231,92377.0,92376.0,0.07385]
[1765366264270,0.3608,92393.0,92372.0,0.37822]
[1765366264271,0.41943,92393.0,92392.0,0.01742]
[1765366264477,0.91015,92393.0,92392.0,0.07385]
[1765366265270,0.91015,92393.0,92392.0,0.08464641]
[1765366265866,0.86508,92393.0,92392.0,0.08464641]
[1765366266175,0.86508,92393.0,92392.0,0.07385]
[1765366266176,0.3628,92393.0,92392.0,0.07385]
[1765366266376,0.89414,92393.0,92392.0,0.07385]
[1765366266683,0.89714,92393.0,92392.0,0.07485]
[1765366267376,0.89714,92393.0,92392.0,0.08561593]
[1765366268366,0.89714,92393.0,92392.0,0.07485]
[1765366268571,0.92605,92393.0,92392.0,0.07485]
[1765366270176,0.92605,92393.0,92392.0,0.11362295]
[1765366271983,0.50728,92393.0,92392.0,0.07485]
[1765366272184,0.005,92393.0,92392.0,0.07485]
[1765366272383,0.5072,92393.0,92392.0,0.07485]
[1765366275488,0.005,92393.0,92392.0,0.07485]
[1765366281382,0.00016231,92402.0,92401.0,0.05621]
[1765366281583,0.56057,92410.0,92409.0,0.02743]
[1765366281784,0.56057,92410.0,92409.0,0.05621]
[1765366283285,0.56157,92410.0,92409.0,0.05721]
[1765366284481,0.56157,92410.0,92409.0,0.05821]
[1765366286988,0.05949,92410.0,92409.0,0.05821]
[1765366287183,0.56157,92410.0,92409.0,0.05821]
[1765366289198,0.56157,92410.0,92409.0,0.002]
[1765366293198,0.56157,92410.0,92409.0,0.10018509]
[1765366294196,0.56157,92410.0,92409.0,0.06146]
[1765366294397,0.56157,92410.0,92409.0,0.03171]
[1765366294699,0.56157,92410.0,92409.0,0.002]
[1765366295102,0.56157,92410.0,92409.0,0.06146]
[1765366295693,0.56153,92410.0,92409.0,0.06146]
[1765366295894,0.56153,92410.0,92409.0,0.11954764]
[1765366297793,0.56153,92410.0,92409.0,0.06146]
[1765366300004,0.56149,92410.0,92409.0,0.06146]
[1765366308005,0.05949,92410.0,92409.0,0.06146]
[1765366308396,0.56149,92410.0,92409.0,0.06146]
[1765366312106,0.05949,92410.0,92409.0,0.06146]
[1765366312309,0.00016231,92419.0,92414.0,0.05946]
[1765366312504,0.17112668,92440.0,92439.0,0.05946]
[1765366312699,0.56172179,92440.0,92439.0,0.05946]
[1765366312918,0.56172179,92440.0,92439.0,0.09829192]
[1765366313308,0.56172179,92440.0,92439.0,0.05946]
[1765366313513,0.05972179,92440.0,92439.0,0.02971]
[1765366313717,0.56172179,92440.0,92439.0,0.02971]
[1765366314514,0.06572179,92440.0,92439.0,0.06069]
[1765366314813,0.56772179,92440.0,92439.0,0.06069]
[1765366315002,0.06572179,92440.0,92439.0,0.06069]
[1765366315204,0.57272179,92440.0,92439.0,0.06169]
[1765366315403,0.07072179,92440.0,92439.0,0.06169]
[1765366315709,0.57276179,92440.0,92439.0,0.06169]
[1765366316014,0.56776179,92440.0,92439.0,0.06169]
[1765366316314,0.56772179,92440.0,92439.0,0.06169]
[1765366316914,0.56172179,92440.0,92439.0,0.06169]
[1765366317506,0.56272179,92440.0,92439.0,0.06169]
[1765366317707,0.56272179,92440.0,92439.0,0.06269]
[1765366318315,0.56272179,92440.0,92439.0,0.06169]
[1765366318517,0.56272179,92440.0,92439.0,0.06269]
[1765366319917,0.56268179,92440.0,92439.0,0.06269]
[1765366322218,0.56268179,92440.0,92439.0,0.003]
[1765366322802,0.05461,92431.0,92430.0,0.00016231]
[1765366323616,0.05461,92431.0,92430.0,2.31e-06]
[1765366323820,0.05445,92418.0,92417.0,0.03883192]
[1765366324020,0.05445,92417.0,92416.0,0.03883192]
[1765366324314,0.05445,92417.0,92416.0,0.02747]
[1765366324518,0.05445,92417.0,92416.0,0.05745]
[1765366325319,0.05645,92417.0,92416.0,0.06445]
[1765366326811,0.05945,92417.0,92416.0,0.001]
[1765366327122,0.05945,92417.0,92416.0,0.02847]
[1765366327422,0.05845,92417.0,92416.0,0.05845]
[1765366327813,0.05845,92417.0,92416.0,0.11669788]
[1765366328009,0.05645,92417.0,92416.0,0.11669788]
[1765366328210,0.44693,92417.0,92416.0,0.11569788]
[1765366328415,0.44893,92417.0,92416.0,0.05845]
[1765366329821,0.44693,92417.0,92416.0,0.05745]
[1765366330328,0.44593,92417.0,92416.0,0.05745]
[1765366330512,0.44593,92417.0,92416.0,0.05845]
[1765366330719,0.44493,92417.0,92416.0,0.05945]
[1765366330921,0.44493,92417.0,92416.0,0.05845]
[1765366331227,0.55657,92417.0,92416.0,0.05945]
[1765366332632,0.00016231,92426.0,92425.0,0.07182]
[1765366332831,0.42212231,92426.0,92425.0,0.07182]
[1765366333015,0.42212231,92426.0,92422.0,0.0580751]
[1765366333221,0.42212231,92426.0,92425.0,0.07182]
[1765366333915,0.42312231,92426.0,92425.0,0.001]
[1765366334517,0.42312231,92426.0,92425.0,0.07382]
[1765366334717,0.42312231,92426.0,92425.0,0.07282]
[1765366335425,0.42312231,92426.0,92425.0,0.01763]
[1765366335735,0.42312231,92426.0,92425.0,0.04562]
[1765366335919,0.42212231,92426.0,92425.0,0.04462]
[1765366336120,0.42312231,92426.0,92425.0,0.04462]
[1765366336320,0.42412231,92426.0,92425.0,0.04462]
[1765366336520,0.42312231,92426.0,92425.0,0.04462]
[1765366336726,0.42412231,92426.0,92425.0,0.04562]
[1765366336929,0.42312231,92426.0,92425.0,0.04562]
[1765366337124,0.42312231,92426.0,92425.0,0.04462]
[1765366337426,0.42412231,92426.0,92425.0,0.001]
[1765366337728,0.42412231,92426.0,92425.0,0.03973931]
[1765366337934,0.42312231,92426.0,92425.0,0.001]
[1765366338833,0.0546,92424.0,92423.0,0.0580751]
[1765366340035,0.0546,92424.0,92423.0,0.0860651]
[1765366340229,0.0576,92424.0,92423.0,0.02899]
[1765366340434,0.0576,92424.0,92423.0,0.001]
[1765366340632,0.0576,92424.0,92423.0,0.02899]
[1765366340937,0.0576,92424.0,92423.0,0.001]
[1765366341419,0.0566,92424.0,92423.0,0.001]
[1765366341624,0.0576,92424.0,92423.0,0.001]
[1765366342138,0.0546,92419.0,92418.0,0.41599]
[1765366343439,0.0556,92419.0,92418.0,0.41599]
[1765366344928,0.0546,92419.0,92418.0,0.41599]
[1765366345140,0.0556,92419.0,92418.0,0.41599]
[1765366345529,0.0546,92419.0,92418.0,0.41599]
[1765366345740,0.0556,92419.0,92418.0,0.41599]
[1765366345941,0.0556,92419.0,92418.0,0.3608]
[1765366346139,0.0556,92419.0,92418.0,0.389]
[1765366346343,0.0556,92419.0,92418.0,0.41859]
[1765366348737,0.0556,92419.0,92418.0,0.3608]
[1765366349137,0.0576,92419.0,92418.0,0.389]
[1765366349537,0.0576,92419.0,92418.0,0.41859]
[1765366350040,0.0556,92419.0,92418.0,0.41859]
[1765366350548,0.0546,92411.0,92410.0,0.01663]
[1765366350848,0.0546,92411.0,92410.0,0.04483]
[1765366351147,0.0546,92411.0,92410.0,0.07442]
[1765366352350,0.0556,92411.0,92410.0,0.07642]
[1765366352940,0.0546,92411.0,92410.0,0.07442]
[1765366353144,0.0556,92411.0,92410.0,0.07442]
[1765366353646,0.0566,92411.0,92410.0,0.07442]
[1765366354545,0.0556,92411.0,92410.0,0.07442]
[1765366354745,0.0576,92411.0,92410.0,0.07542]
[1765366355347,0.0566,92411.0,92410.0,0.07542]
[1765366355949,0.0576,92411.0,92410.0,0.07542]
[1765366361749,0.50508,92411.0,92410.0,0.07542]
[1765366362546,0.50308,92411.0,92410.0,0.07442]
[1765366362844,0.50408,92411.0,92410.0,0.07542]
[1765366363050,0.50408,92411.0,92410.0,0.07642]
[1765366363651,0.50408,92411.0,92410.0,0.07542]
[1765366363848,0.50408,92411.0,92410.0,0.07742]
[1765366364257,0.001,92411.0,92410.0,0.07742]
[1765366364454,0.0556,92411.0,92410.0,0.07742]
[1765366372366,0.0556,92411.0,92410.0,0.15508384]
[1765366376367,0.0556,92411.0,92410.0,0.07742]
[1765366376769,0.0556,92411.0,92410.0,0.15507231]
[1765366376967,0.0556,92411.0,92410.0,0.01963]
[1765366377166,0.0556,92411.0,92410.0,0.0467]
[1765366377369,0.0556,92411.0,92410.0,0.12435231]
[1765366377869,0.0556,92411.0,92410.0,0.15137231]
[1765366379272,0.50304,92411.0,92410.0,0.07372]
[1765366379666,0.001,92411.0,92410.0,0.07372]
[1765366380271,0.05533,92411.0,92410.0,0.07372]
[1765366381264,0.05533,92411.0,92410.0,0.08070365]
[1765366381473,0.05533,92411.0,92410.0,0.003]
[1765366381864,0.05433,92408.0,92407.0,0.00016231]
[1765366382170,0.001,92411.0,92398.0,0.43850365]
[1765366382373,0.22269404,92408.0,92404.0,0.03883251]
[1765366382567,0.001,92411.0,92404.0,0.03883251]
[1765366382874,0.4,92410.0,92404.0,0.03883251]
[1765366383169,0.4,92410.0,92403.0,0.03883251]
[1765366383473,0.4,92410.0,92398.0,0.36096231]
[1765366383474,0.001,92411.0,92402.0,0.03883251]
[1765366383974,0.001,92410.0,92407.0,0.002]
[1765366384577,0.3608,92411.0,92407.0,0.002]
[1765366384772,0.4,92410.0,92407.0,0.002]
[1765366385074,0.4,92410.0,92402.0,0.001]
[1765366385272,0.3608,92403.0,92402.0,0.002]